bitfinex-derivatives/quotes_SOLF0:USTF0_20260312
["timestamp","ask_amount","ask_price","bid_price","bid_amount"]
[1773302546739,6.14520045,85.909,85.849,5.7836975]
[1773302546936,2.53278865,85.9,85.849,5.7836975]
[1773302547441,6.14520045,85.909,85.85,2.53278865]
[1773302547643,6.14520045,85.909,85.849,5.7836975]
[1773302548042,0.07639384,85.883,85.849,5.7836975]
[1773302550441,6.14520045,85.909,85.858,5.7836975]
[1773302550744,6.14520045,85.909,85.857,0.08086277]
[1773302550949,6.14520045,85.909,85.844,5.7836975]
[1773302551339,6.14520045,85.905,85.818,5.7836975]
[1773302551951,6.14520045,85.905,85.786,36.66]
[1773302551952,6.14520045,85.905,85.853,0.08594017]
[1773302552448,6.14520045,85.905,85.847,5.7836975]
[1773302553153,6.14520045,85.901,85.87,0.07555061]
[1773302553645,6.14520045,85.893,85.832,5.7836975]
[1773302555052,0.08391483,85.871,85.832,5.7836975]
[1773302555253,0.08391483,85.871,85.833,10.484]
[1773302555456,6.14520045,85.893,85.854,0.07348192]
[1773302555750,10.475,85.913,85.854,0.07348192]
[1773302555751,6.14520045,85.912,85.854,0.07348192]
[1773302555951,6.14520045,85.912,85.854,5.7836975]
[1773302556847,6.14520045,85.912,85.874,0.08123877]
[1773302558049,6.14520045,85.901,85.839,5.7836975]
[1773302559548,0.08492447,85.879,85.839,5.7836975]
[1773302561547,6.23012492,85.879,85.822,42.4436975]
[1773302561749,6.23012492,85.879,85.823,5.7836975]
[1773302562146,6.14520045,85.879,85.823,5.7836975]
[1773302562454,0.07903027,85.86,85.823,5.7836975]
[1773302569063,0.07903027,85.86,85.826,5.70934374]
[1773302569661,0.07903027,85.86,85.84,2.53063417]
[1773302570564,0.07903027,85.86,85.831,5.75402187]
[1773302572265,0.07903027,85.86,85.825,10.485]
[1773302572764,0.07903027,85.86,85.822,36.66]
[1773302572963,0.07903027,85.86,85.822,42.41402187]
[1773302574170,0.07903027,85.86,85.823,10.486]
[1773302574669,0.07903027,85.86,85.827,5.75402187]
[1773302575970,0.07903027,85.86,85.829,10.485]
[1773302576270,0.07903027,85.86,85.83,5.75402187]
[1773302577171,5.83819421,85.893,85.834,5.75402187]
[1773302577365,5.83819421,85.893,85.837,5.75402187]
[1773302578170,5.83819421,85.893,85.838,5.75402187]
[1773302578672,5.83819421,85.893,85.856,0.08309204]
[1773302581472,5.83819421,85.893,85.857,10.481]
[1773302582971,5.83819421,85.893,85.856,0.08309204]
[1773302583172,5.83819421,85.893,85.83,6.32669563]
[1773302583173,5.83819421,85.893,85.825,21.32240385]
[1773302583370,5.83819421,85.881,85.819,21.32240385]
[1773302583566,5.83819421,85.881,85.806,21.32240385]
[1773302584377,34.98,85.88,85.805,21.32240385]
[1773302584576,5.83819421,85.851,85.805,21.32240385]
[1773302584776,5.83819421,85.865,85.807,5.75402187]
[1773302585071,5.83819421,85.865,85.834,0.07556987]
[1773302586376,5.83819421,85.882,85.834,0.07556987]
[1773302587181,5.83819421,85.882,85.834,5.82959174]
[1773302587478,5.83819421,85.882,85.835,16.23802187]
[1773302591274,5.83819421,85.882,85.837,21.32240385]
[1773302591469,5.83819421,85.882,85.836,5.75402187]
[1773302592873,5.83819421,85.879,85.836,5.75402187]
[1773302593874,5.83819421,85.879,85.849,0.08801409]
[1773302598182,5.83819421,85.894,85.849,0.08801409]
[1773302598572,5.83819421,85.894,85.848,5.75402187]
[1773302598974,5.83819421,85.894,85.863,0.0815638]
[1773302599485,5.83819421,85.892,85.863,0.0815638]
[1773302599982,5.83819421,85.892,85.841,10.483]
[1773302600783,0.07504267,85.875,85.841,10.483]
[1773302603086,5.47923232,85.875,85.836,27.07642572]
[1773302603284,5.47923232,85.875,85.836,5.75402187]
[1773302604285,5.47923232,85.875,85.836,27.07642572]
[1773302606783,5.47923232,85.875,85.837,21.32240385]
[1773302608287,5.47923232,85.875,85.839,15.93981527]
[1773302608490,5.47923232,85.875,85.84,5.45581527]
[1773302609191,0.07504267,85.875,85.844,5.45581527]
[1773302609384,0.07504267,85.875,85.848,5.45581527]
[1773302609586,5.40418965,85.927,85.851,5.45581527]
[1773302609787,5.40418965,85.927,85.862,5.45581527]
[1773302609990,5.40418965,85.927,85.865,10.48]
[1773302610189,5.40418965,85.916,85.862,5.45581527]
[1773302610390,5.40418965,85.916,85.843,21.32240385]
[1773302610586,5.40418965,85.916,85.836,5.45581527]
[1773302610788,5.40418965,85.888,85.83,57.98240385]
[1773302610989,5.40418965,85.888,85.83,36.66]
[1773302611382,5.40418965,85.884,85.83,36.66]
[1773302611795,5.40418965,85.884,85.832,5.45581527]
[1773302612392,0.07908978,85.867,85.832,5.45581527]
[1773302612695,5.40418965,85.897,85.839,5.45581527]
[1773302612895,5.40418965,85.897,85.849,0.0870189]
[1773302614488,5.40418965,85.897,85.849,5.54283417]
[1773302616493,5.40418965,85.897,85.852,10.482]
[1773302617290,5.40418965,85.897,85.853,5.45581527]
[1773302617699,14.39860406,85.972,85.849,0.0870189]
[1773302617700,5.40418965,85.959,85.891,5.45581527]
[1773302617889,5.40418965,85.959,85.93,2.53002479]
[1773302618987,5.40418965,85.957,85.91,5.45581527]
[1773302619189,34.98,85.991,85.91,5.45581527]
[1773302619190,5.40418965,85.952,85.91,2.53002479]
[1773302619391,5.40418965,85.952,85.9,2.53002479]
[1773302619597,5.40418965,85.949,85.895,5.45581527]
[1773302619999,5.40418965,85.948,85.895,5.45581527]
[1773302620498,0.08815399,85.931,85.895,5.45581527]
[1773302622501,6.3179633,85.98,85.892,36.66]
[1773302622502,5.68924001,85.961,85.899,5.36088594]
[1773302622701,5.68924001,85.961,85.892,36.66]
[1773302622702,5.68924001,85.975,85.905,5.36088594]
[1773302624002,5.68924001,85.975,85.931,5.43537243]
[1773302624801,5.68924001,85.989,85.934,5.36088594]
[1773302625700,5.68924001,85.989,85.953,0.07365526]
[1773302626501,10.463,86.007,85.953,0.07365526]
[1773302626502,5.68924001,86.004,85.953,0.07365526]
[1773302627098,10.463,86.007,85.953,0.07365526]
[1773302627099,22.07349927,85.992,85.953,0.07365526]
[1773302627803,5.68924001,85.979,85.916,5.36088594]
[1773302628002,5.68924001,85.979,85.918,5.36088594]
[1773302628405,5.68924001,85.975,85.918,5.36088594]
[1773302628805,5.68924001,85.991,85.93,5.36088594]
[1773302629904,0.07576024,85.969,85.93,5.36088594]
[1773302630104,0.07576024,85.969,85.931,10.472]
[1773302630305,0.07576024,85.969,85.932,5.33570509]
[1773302630807,5.68924001,85.991,85.932,5.33570509]
[1773302631308,0.0779725,85.959,85.932,5.33570509]
[1773302631502,0.0779725,85.959,85.921,10.474]
[1773302632003,0.0779725,85.959,85.918,5.33570509]
[1773302639715,0.0779725,85.959,85.92,2.52568952]
[1773302640014,0.0779725,85.959,85.921,5.33570509]
[1773302641614,5.81615245,85.959,85.913,36.64]
[1773302641816,5.73817995,85.956,85.913,36.64]
[1773302642016,5.73817995,85.956,85.914,5.33570509]
[1773302643711,0.0779725,85.959,85.914,5.33570509]
[1773302644017,0.0779725,85.959,85.927,5.33570509]
[1773302647119,0.0779725,85.959,85.931,5.33570509]
[1773302650220,0.0779725,85.959,85.934,5.33570509]
[1773302652218,16.38425926,85.992,85.913,36.64]
[1773302652219,13.64791224,86.047,85.977,10.467]
[1773302652419,183.51,86.095,85.97,2.52568952]
[1773302652420,13.64791224,86.021,85.97,2.52568952]
[1773302653326,2.52568952,86.01,85.969,36.62]
[1773302653522,13.64794989,86.009,85.969,36.62]
[1773302654526,13.64794989,86.009,85.93,6.30869937]
[1773302654729,13.64794989,86.009,85.881,28.21613054]
[1773302654730,13.41754733,86.006,85.94,36.62]
[1773302654925,13.41754733,86.006,85.932,36.62]
[1773302655122,0.07472695,85.978,85.932,36.62]
[1773302655424,0.07472695,85.978,85.928,36.62]
[1773302656029,13.41710285,85.988,85.928,36.62]
[1773302656426,0.08030413,85.962,85.928,36.62]
[1773302657128,13.41710285,85.988,85.929,14.13501415]
[1773302657328,13.41710285,85.988,85.936,0.07806137]
[1773302657522,13.49775842,86.002,85.936,0.07806137]
[1773302657929,13.49775842,86.002,85.933,14.13501415]
[1773302658131,13.49775842,86.002,85.93,6.30869937]
[1773302658132,13.49775842,86.002,85.939,10.471]
[1773302658326,13.49775842,86.002,85.96,0.08722303]
[1773302660330,13.43617267,85.999,85.96,0.08722303]
[1773302660827,13.43617267,86.019,85.943,14.13501415]
[1773302661029,13.43617267,86.019,85.951,14.13501415]
[1773302661233,13.43617267,86.019,85.971,0.08818883]
[1773302668534,13.6479941,86.009,85.929,21.32240385]
[1773302668834,6.30869937,86.01,85.925,21.32240385]
[1773302668835,13.6479941,86.003,85.925,21.32240385]
[1773302669036,13.6479941,85.964,85.92,36.62]
[1773302669236,13.6479941,85.964,85.903,10.476]
[1773302669942,0.07875662,85.942,85.903,10.476]
[1773302670641,0.07875662,85.942,85.903,31.79840385]
[1773302670939,0.07875662,85.942,85.909,10.475]
[1773302672041,0.07875662,85.942,85.914,10.474]
[1773302673543,13.6479941,85.964,85.914,10.474]
[1773302673743,13.6479941,85.964,85.919,0.07861936]
[1773302675541,13.61960084,85.959,85.919,0.07861936]
[1773302676047,13.61960084,85.959,85.9,2.52677377]
[1773302676740,0.08215659,85.938,85.9,2.52677377]
[1773302677538,0.08215659,85.938,85.899,36.62]
[1773302678341,0.08215659,85.938,85.9,10.476]
[1773302683341,0.08215659,85.938,85.899,36.62]
[1773302683547,0.08215659,85.938,85.909,10.475]
[1773302684944,0.08215659,85.938,85.899,36.62]
[1773302685142,13.54434978,85.937,85.899,36.62]
[1773302687847,13.54434978,85.937,85.897,10.477]
[1773302687848,13.54434978,85.937,85.9,36.64]
[1773302688853,0.07851719,85.927,85.9,36.64]
[1773302689049,0.07851719,85.927,85.902,10.476]
[1773302693156,0.07851719,85.927,85.9,36.64]
[1773302696363,13.49112413,85.926,85.9,36.64]
[1773302702875,0.07851719,85.927,85.9,36.64]
[1773302703874,13.51809554,85.927,85.9,36.64]
[1773302705574,13.51809554,85.927,85.872,5.05841073]
[1773302705782,13.51809554,85.927,85.873,36.64]
[1773302706170,13.43957835,85.927,85.873,36.64]
[1773302706474,0.08360147,85.909,85.873,36.64]
[1773302706674,1.48091279,85.909,85.873,36.64]
[1773302709981,1.48091279,85.909,85.858,5.05841073]
[1773302710583,1.33133505,85.889,85.851,36.64]
[1773302711583,0.08065765,85.879,85.851,36.64]
[1773302711778,0.08065765,85.879,85.852,5.05841073]
[1773302711983,0.08065765,85.879,85.86,2.52731362]
[1773302713486,1.3827303,85.902,85.861,5.13654936]
[1773302714086,1.58599712,85.912,85.87,2.52731362]
[1773302714985,1.58599712,85.912,85.882,0.07824876]
[1773302715185,1.65148324,85.924,85.882,0.07824876]
[1773302715785,1.65148324,85.924,85.88,2.52821462]
[1773302716086,1.65148324,85.939,85.894,0.0802519]
[1773302716390,1.65148324,85.939,85.9,2.52821462]
[1773302716587,1.7089963,85.969,85.91,2.52821462]
[1773302717089,1.7089963,85.969,85.911,0.08749791]
[1773302717481,1.75535704,85.959,85.92,2.52821462]
[1773302717992,1.75535704,85.959,85.931,0.08646413]
[1773302724494,1.75535704,85.959,85.91,0.00067875]
[1773302724693,2.16145878,85.95,85.91,2.52821462]
[1773302725101,0.08774391,85.954,85.92,2.52821462]
[1773302725299,0.08774391,85.954,85.911,5.33383839]
[1773302725699,12.6736097,85.955,85.911,5.33383839]
[1773302726103,0.08632142,85.941,85.911,5.33383839]
[1773302732104,2.57989496,85.941,85.9,2.52821462]
[1773302732305,2.57989496,85.941,85.9,7.86205301]
[1773302732604,0.08632142,85.941,85.901,5.33383839]
[1773302732794,0.08632142,85.941,85.91,2.52821462]
[1773302734909,0.08632142,85.941,85.901,5.33383839]
[1773302736410,0.08632142,85.941,85.911,5.33383839]
[1773302738113,0.08632142,85.941,85.9,2.52821462]
[1773302738311,0.08632142,85.941,85.9,7.86205301]
[1773302738514,0.08632142,85.941,85.901,5.33383839]
[1773302740216,0.08632142,85.941,85.901,15.80983839]
[1773302740617,0.08632142,85.941,85.902,5.33383839]
[1773302744721,2.06083212,85.954,85.902,5.33383839]
[1773302745021,10.47,85.952,85.902,5.33383839]
[1773302745222,10.47,85.952,85.913,5.85518738]
[1773302747221,13.17362963,85.952,85.913,5.85518738]
[1773302748620,2.73345165,85.939,85.894,42.41941268]
[1773302748820,2.73345165,85.939,85.895,5.77941268]
[1773302749025,0.07465115,85.941,85.901,5.77941268]
[1773302749225,0.07465115,85.941,85.894,36.64]
[1773302749226,10.468,85.966,85.913,5.77941268]
[1773302749520,2.84019248,85.969,85.913,5.77941268]
[1773302749925,2.84019248,85.959,85.913,5.77941268]
[1773302750428,10.471,85.946,85.913,5.77941268]
[1773302750619,10.471,85.946,85.927,0.08046631]
[1773302750928,3.02333154,85.942,85.901,6.18312822]
[1773302751124,3.02318008,85.937,85.894,36.64]
[1773302751324,3.05473067,85.929,85.871,6.18312822]
[1773302751732,3.05473067,85.919,85.859,6.18312822]
[1773302752030,2.52821462,85.92,85.859,6.18312822]
[1773302752031,3.05473067,85.909,85.859,6.18312822]
[1773302752325,0.0854503,85.898,85.859,6.18312822]
[1773302752722,3.1096954,85.897,85.84,2.52821462]
[1773302752927,3.1096954,85.897,85.841,6.18312822]
[1773302753829,0.07599298,85.878,85.841,6.18312822]
[1773302754423,2.52821462,85.91,85.851,6.26346125]
[1773302754625,3.02836804,85.912,85.861,6.18312822]
[1773302755127,10.475,85.907,85.861,6.18312822]
[1773302755833,10.475,85.907,85.875,0.08851573]
[1773302759529,3.02836804,85.912,85.875,6.27164395]
[1773302761727,36.64,85.938,85.875,6.27164395]
[1773302761728,3.48278676,85.907,85.875,0.08851573]
[1773302762434,3.48278676,85.907,85.86,6.18312822]
[1773302762633,3.48278676,85.907,85.882,0.08895233]
[1773302762936,6.03559416,85.9,85.86,6.18312822]
[1773302763127,0.08875442,85.892,85.86,6.18312822]
[1773302763739,2.52821462,85.89,85.841,6.18312822]
[1773302764034,3.53478167,85.889,85.841,6.18312822]
[1773302764935,0.0857011,85.874,85.841,6.18312822]
[1773302768745,2.52821462,85.92,85.861,6.18312822]
[1773302769042,3.19291465,85.919,85.861,6.18312822]
[1773302769434,3.21751942,85.905,85.861,6.18312822]
[1773302770143,10.477,85.895,85.874,0.08559317]
[1773302770943,3.21569058,85.894,85.874,0.08559317]
[1773302772144,10.477,85.893,85.874,0.08559317]
[1773302774651,10.478,85.882,85.846,6.18312822]
[1773302776248,0.08933027,85.873,85.846,6.18312822]
[1773302777849,10.48,85.872,85.846,6.18312822]
[1773302778054,10.48,85.872,85.834,6.18312822]
[1773302782951,2.53059714,85.86,85.79,21.30107355]
[1773302783146,6.15908103,85.859,85.8,2.53059714]
[1773302783944,0.08269708,85.838,85.8,2.53059714]
[1773302785051,0.08269708,85.838,85.811,6.72770116]
[1773302785252,10.48,85.866,85.811,6.72770116]
[1773302785949,16.63908103,85.866,85.811,6.72770116]
[1773302786654,10.482,85.857,85.83,0.07991012]
[1773302787955,6.15908103,85.865,85.83,0.07991012]
[1773302791658,16.64008103,85.859,85.83,0.07991012]
[1773302792159,6.15908103,85.858,85.83,0.07991012]
[1773302792750,6.15908103,85.858,85.811,6.72770116]
[1773302793153,6.15908103,85.846,85.799,6.72770116]
[1773302793358,2.53059714,85.85,85.799,6.72770116]
[1773302793359,6.15908103,85.842,85.799,6.72770116]
[1773302794157,10.484,85.838,85.799,6.72770116]
[1773302797460,16.64308103,85.838,85.799,6.72770116]
[1773302799661,6.15908103,85.834,85.799,6.72770116]
[1773302800664,0.07681362,85.825,85.799,6.72770116]
[1773302805168,0.07681362,85.825,85.797,36.66]
[1773302805770,6.99530133,85.825,85.797,36.66]
[1773302805973,0.07681362,85.825,85.797,36.66]
[1773302806173,0.07681362,85.825,85.798,6.75587964]
[1773302808069,6.91848771,85.849,85.804,6.75587964]
[1773302808683,6.91848771,85.844,85.803,0.07565885]
[1773302808973,6.91848771,85.839,85.803,0.07565885]
[1773302809180,6.91848771,85.839,85.797,36.66]
[1773302809575,6.91848771,85.839,85.812,0.07790065]
[1773302810175,10.484,85.834,85.812,0.07790065]
[1773302811778,10.485,85.825,85.797,19.16390065]
[1773302814280,10.485,85.825,85.791,6.75587964]
[1773302814575,7.00812214,85.816,85.777,6.59105962]
[1773302814976,7.00812214,85.799,85.753,43.27105962]
[1773302815177,2.53059714,85.79,85.753,6.59105962]
[1773302815374,2.53059714,85.79,85.73,2.53059714]
[1773302815375,7.00812214,85.787,85.73,2.53059714]
[1773302815580,9.53871928,85.77,85.711,2.0287878]
[1773302815777,7.00812214,85.769,85.71,39.21059714]
[1773302816487,0.0801303,85.748,85.71,39.21059714]
[1773302816680,10.491,85.777,85.72,2.53059714]
[1773302817485,10.491,85.777,85.721,6.59105962]
[1773302817983,7.00812214,85.772,85.721,6.59105962]
[1773302818175,2.53059714,85.77,85.74,0.08451215]
[1773302818378,7.00812214,85.769,85.74,0.08451215]
[1773302820382,7.00812214,85.785,85.74,6.67557177]
[1773302820880,7.00812214,85.785,85.74,6.59105962]
[1773302821275,7.00812214,85.783,85.754,0.07975558]
[1773302821479,7.00812214,85.779,85.754,0.07975558]
[1773302821683,7.00812214,85.77,85.726,6.59105962]
[1773302822780,7.00812214,85.769,85.711,6.59105962]
[1773302823482,10.493,85.76,85.711,6.59105962]
[1773302823679,0.08950528,85.749,85.711,6.59105962]
[1773302825287,0.08950528,85.749,85.721,6.59105962]
[1773302828589,7.00812214,85.783,85.731,6.59105962]
[1773302829487,34.91,85.829,85.741,6.59105962]
[1773302829488,7.00812214,85.796,85.741,6.59105962]
[1773302829885,7.00812214,85.796,85.748,0.07573713]
[1773302830086,7.00812214,85.793,85.748,0.07573713]
[1773302830790,7.00812214,85.793,85.741,6.59105962]
[1773302830991,7.00812214,85.778,85.721,6.59105962]
[1773302831287,7.00812214,85.778,85.73,2.53059714]
[1773302831589,7.00812214,85.778,85.731,6.59105962]
[1773302832380,0.08597529,85.763,85.731,6.59105962]
[1773302832788,7.09409743,85.763,85.718,6.59105962]
[1773302833286,7.00812214,85.763,85.718,6.59105962]
[1773302833683,0.07632716,85.749,85.718,6.59105962]
[1773302833882,0.07632716,85.749,85.72,2.53059714]
[1773302834091,0.07632716,85.749,85.721,6.59105962]
[1773302834689,0.07632716,85.749,85.71,2.53059714]
[1773302834886,7.00812214,85.777,85.721,6.59105962]
[1773302835083,7.00812214,85.777,85.726,0.07928815]
[1773302835796,7.00812214,85.777,85.726,6.67034777]
[1773302836189,7.00812214,85.776,85.726,6.67034777]
[1773302845586,7.0128294,85.773,85.726,6.67034777]
[1773302846296,7.0128294,85.773,85.726,6.59105962]
[1773302846497,7.0128294,85.773,85.741,0.08366392]
[1773302847104,7.0128294,85.77,85.741,0.08366392]
[1773302848094,10.493,85.768,85.741,0.08366392]
[1773302848299,7.0128294,85.767,85.741,0.08366392]
[1773302854004,10.493,85.766,85.741,0.08366392]
[1773302854201,7.0128294,85.765,85.741,0.08366392]
[1773302855004,10.493,85.764,85.726,6.8285282]
[1773302855205,0.08126322,85.762,85.726,6.8285282]
[1773302855505,0.08126322,85.762,85.702,10.5]
[1773302855506,10.494,85.752,85.7,2.53717664]
[1773302855709,7.0128294,85.751,85.7,2.53717664]
[1773302855905,7.0128294,85.749,85.69,2.53717664]
[1773302856600,0.08579704,85.728,85.69,2.53717664]
[1773302857305,0.08579704,85.728,85.7,2.53717664]
[1773302857506,0.08579704,85.728,85.711,4.17588554]
[1773302858604,7.0128294,85.769,85.721,4.23252681]
[1773302859608,7.0128294,85.768,85.721,4.23252681]
[1773302859804,7.0128294,85.768,85.731,4.2192906]
[1773302860008,7.0128294,85.768,85.736,0.07579126]
[1773302860606,7.0128294,85.768,85.718,21.30107355]
[1773302860607,163.3,85.728,85.616,28.87083603]
[1773302860805,2.53717664,85.66,85.561,81.37602261]
[1773302861107,2.53717664,85.68,85.621,81.37590315]
[1773302861307,2.53717664,85.69,85.63,83.91307979]
[1773302861504,10.505,85.667,85.61,81.37590315]
[1773302861701,10.505,85.667,85.61,83.91307979]
[1773302861907,2.53717664,85.68,85.62,2.53717664]
[1773302862109,0.07480903,85.647,85.621,81.36912437]
[1773302862310,10.503,85.679,85.621,81.36912437]
[1773302862506,2.53717664,85.67,85.621,81.36912437]
[1773302862705,2.53717664,85.66,85.604,81.36912437]
[1773302862904,2.53717664,85.64,85.587,81.36912437]
[1773302863301,2.53717664,85.65,85.6,2.53717664]
[1773302863508,9.07089603,85.686,85.576,36.68]
[1773302863509,2.53717664,85.64,85.577,81.37014731]
[1773302863701,34.91,85.659,85.515,34.91]
[1773302863907,34.91,85.599,85.441,163.847]
[1773302864104,34.91,85.579,85.46,6.36409542]
[1773302864303,6.36409542,85.6,85.48,6.36409542]
[1773302864906,10.516,85.578,85.481,10.528]
[1773302865111,0.08000261,85.549,85.481,10.528]
[1773302865411,0.08000261,85.549,85.482,36.7]
[1773302865607,10.516,85.578,85.485,10.527]
[1773302865913,10.516,85.578,85.486,72.75580269]
[1773302866412,10.516,85.578,85.523,0.0808893]
[1773302866909,10.516,85.578,85.503,72.83698367]
[1773302867108,10.517,85.564,85.503,72.83698367]
[1773302867517,6.36409542,85.6,85.532,0.0800299]
[1773302868014,6.36409542,85.6,85.524,72.84021436]
[1773302868208,10.511,85.615,85.524,72.84021436]
[1773302869016,10.511,85.615,85.561,0.08100208]
[1773302869516,10.511,85.615,85.541,72.84579635]
[1773302870017,10.511,85.615,85.579,0.07698215]
[1773302870712,6.36409542,85.62,85.579,0.07698215]
[1773302871208,10.509,85.631,85.579,0.07698215]
[1773302871716,10.509,85.631,85.557,72.81376853]
[1773302871916,6.36409542,85.64,85.557,72.81376853]
[1773302872619,6.36409542,85.64,85.59,0.07962577]
[1773302873110,10.509,85.636,85.59,0.07962577]
[1773302875218,6.36409542,85.62,85.542,72.83453908]
[1773302875618,0.08349083,85.622,85.543,10.52]
[1773302875820,10.509,85.636,85.544,72.87435197]
[1773302876317,10.51,85.626,85.544,72.87435197]
[1773302876824,0.07662073,85.599,85.544,72.87435197]
[1773302877421,10.51,85.626,85.544,72.87435197]
[1773302878122,10.51,85.626,85.576,0.07839894]
[1773302879522,10.508,85.639,85.576,72.85033852]
[1773302880026,10.508,85.639,85.576,72.77193958]
[1773302881222,10.507,85.653,85.576,72.77193958]
[1773302881421,10.507,85.653,85.599,0.07553532]
[1773302882017,10.507,85.653,85.591,72.77508104]
[1773302882721,10.507,85.653,85.58,109.45819836]
[1773302883028,10.507,85.653,85.581,72.75819836]
[1773302884126,10.507,85.653,85.581,83.27319836]
[1773302884324,36.7,85.664,85.581,83.27319836]
[1773302884827,36.7,85.664,85.594,72.7694231]
[1773302885027,10.505,85.665,85.594,72.7694231]
[1773302885426,10.504,85.677,85.6,72.7712884]
[1773302885626,6.36409542,85.72,85.611,72.7712884]
[1773302886730,34.91,85.719,85.657,0.07828488]
[1773302886929,10.503,85.68,85.657,0.07828488]
[1773302887332,10.503,85.68,85.62,72.79494296]
[1773302888126,10.505,85.669,85.61,36.7]
[1773302888331,10.505,85.669,85.604,72.63300621]
[1773302888532,34.91,85.695,85.604,72.63300621]
[1773302888832,10.504,85.673,85.604,72.63300621]
[1773302889129,10.504,85.673,85.628,0.07380621]
[1773302889333,10.506,85.658,85.628,0.07380621]
[1773302889938,10.506,85.658,85.604,72.63300621]
[1773302890336,10.504,85.672,85.604,72.63300621]
[1773302892835,10.504,85.672,85.629,0.07912033]
[1773302895739,10.506,85.661,85.629,0.07912033]
[1773302896440,10.504,85.673,85.622,72.63012126]
[1773302896833,10.503,85.684,85.622,72.63012126]
[1773302898335,10.503,85.684,85.644,0.07730318]
[1773302898732,10.503,85.684,85.644,72.70654771]
[1773302900136,10.502,85.694,85.644,72.70654771]
[1773302900641,10.502,85.694,85.644,72.62924453]
[1773302901041,10.5,85.705,85.644,72.62924453]
[1773302901640,10.5,85.705,85.66,0.07623915]
[1773302902236,34.91,85.669,85.544,34.91]
[1773302902436,34.91,85.667,85.555,36.68]
[1773302902832,34.91,85.667,85.56,6.35468209]
[1773302903143,10.508,85.642,85.574,10.516]
[1773302903539,0.08747506,85.622,85.574,10.516]
[1773302904344,0.08747506,85.622,85.575,63.78066651]
[1773302905045,10.511,85.619,85.575,63.78066651]
[1773302908040,0.08747506,85.622,85.543,63.77703106]
[1773302908249,6.35468209,85.61,85.543,63.77703106]
[1773302908445,0.08747506,85.622,85.543,63.77703106]
[1773302908648,34.91,85.627,85.543,63.77703106]
[1773302908941,0.08141967,85.591,85.543,63.77703106]
[1773302912044,0.08141967,85.591,85.54,36.7]
[1773302912045,0.08141967,85.591,85.546,63.84100376]
[1773302915254,0.08141967,85.591,85.547,36.7]
[1773302915550,0.08141967,85.591,85.548,63.91224518]
[1773302918346,10.65814335,85.65,85.562,63.87656356]
[1773302918347,10.511,85.617,85.562,63.87656356]
[1773302919542,10.65814335,85.661,85.49,34.91]
[1773302919543,6.35468209,85.61,85.49,34.91]
[1773302919744,0.07978834,85.598,85.5,41.26468209]
[1773302919942,10.514,85.593,85.501,36.7]
[1773302921053,10.514,85.593,85.525,10.522]
[1773302921643,10.514,85.593,85.526,54.96154414]
[1773302922554,10.515,85.584,85.526,54.96154414]
[1773302923252,10.515,85.584,85.551,0.07505434]
[1773302923456,34.91,85.609,85.551,0.07505434]
[1773302923953,34.91,85.609,85.536,36.7]
[1773302924652,34.91,85.609,85.537,54.92269145]
[1773302925353,34.91,85.609,85.564,0.07503482]
[1773302925946,10.516,85.579,85.564,0.07503482]
[1773302926253,34.91,85.609,85.564,0.07503482]
[1773302927551,34.91,85.608,85.564,0.07503482]
[1773302928144,34.91,85.608,85.537,54.92269145]
[1773302928455,10.515,85.587,85.537,54.92269145]
[1773302929948,10.513,85.597,85.537,54.92269145]
[1773302931554,10.513,85.597,85.538,10.521]
[1773302931752,10.513,85.597,85.539,55.1659581]
[1773302931953,10.513,85.597,85.558,0.07373274]
[1773302932152,6.35468209,85.65,85.558,55.23969084]
[1773302932355,34.91,85.649,85.558,55.23969084]
[1773302932762,34.91,85.649,85.558,55.1659581]
[1773302933063,10.51,85.627,85.561,55.16185443]
[1773302933667,10.51,85.627,85.563,55.16354969]
[1773302935066,10.51,85.627,85.565,55.19834212]
[1773302935662,10.51,85.627,85.566,36.7]
[1773302935862,10.51,85.627,85.567,55.20010863]
[1773302937759,10.511,85.617,85.567,55.20010863]
[1773302940670,10.511,85.617,85.583,0.07377709]
[1773302940868,10.51,85.628,85.583,55.31499733]
[1773302941366,10.51,85.628,85.583,55.24122024]
[1773302941767,10.508,85.638,85.591,55.24296976]
[1773302941966,2.54661159,85.65,85.591,55.24296976]
[1773302942760,2.54661159,85.64,85.591,55.24296976]
[1773302943166,2.54661159,85.64,85.612,0.07514708]
[1773302945076,2.54661159,85.64,85.535,34.91]
[1773302945077,2.54661159,85.62,85.541,55.10513989]
[1773302945265,2.54661159,85.6,85.541,55.10513989]
[1773302945462,2.54661159,85.6,85.544,55.10638552]